fUSD/lending_fUSD_20250916
["ID","MTS","AMOUNT","RATE_DAILY","PERIOD"]
[385752222,1758010234761,-150.99,0.00022562,2]
[385752223,1758010234770,-11885.48,0.00022562,2]
[385752224,1758010234780,-643.36,0.00022562,2]
[385752225,1758010234789,-299.99,0.00022562,7]
[385752226,1758010234798,-549.0,0.00022733,2]
[385752227,1758010234808,-500.0,0.00022733,2]
[385752228,1758010234817,-150.0,0.00022733,2]
[385752229,1758010235061,-268.72,0.00022994,2]
[385752230,1758010235072,-549.0,0.00023007,2]
[385752231,1758010235082,-500.0,0.00023007,2]
[385752232,1758010235092,-155.42,0.00023157,2]
[385752233,1758010235102,-549.0,0.00023281,2]
[385752234,1758010235111,-642.99983456,0.00023281,2]
[385752235,1758010235120,-666.0,0.00023463,3]
[385752236,1758010235129,-1000.0,0.00023503,2]
[385752237,1758010235138,-1222.44543414,0.00023554,10]
[385752238,1758010235147,-549.0,0.00023555,2]
[385752239,1758010235156,-587.0,0.00023681,2]
[385752240,1758010235166,-549.0,0.00023829,2]
[385752241,1758010235175,-151.2,0.00023863,2]
[385752242,1758010235184,-549.0,0.00024103,2]
[385752243,1758010235193,-549.0,0.00024377,2]
[385752244,1758010235202,-549.0,0.00024651,2]
[385752245,1758010235211,-150.0,0.00024658,2]
[385752246,1758010235222,-13079.98821336,0.000249,2]
[385752247,1758010235231,-549.0,0.00024925,2]
[385752248,1758010235240,-170.0,0.00025,7]
[385752249,1758010235250,-351.58,0.00025012,2]
[385752250,1758010235259,-150.0,0.00025021,7]
[385752251,1758010235268,-454.70190744,0.00025037,2]
[385752252,1758010235280,-587.59809256,0.00025037,2]
[385752253,1758010235289,-1184.3,0.00025063,2]
[385752254,1758010235299,-549.0,0.00025198,2]
[385752255,1758010235308,-150.0,0.000252,4]
[385752256,1758010235318,-150.0,0.000252,4]
[385752257,1758010235327,-150.0,0.000252,4]
[385752258,1758010235336,-549.0,0.00025472,2]
[385752259,1758010235345,-291.367,0.00025588,10]
[385752260,1758010235354,-168.0,0.00025636,2]
[385752261,1758010235364,-168.0,0.00025685,2]
[385752262,1758010235373,-151.2,0.00025726,7]
[385752263,1758010235382,-549.0,0.00025746,2]
[385752264,1758010235391,-168.0,0.00025835,2]
[385752265,1758010235400,-170.0,0.0002589,7]
[385752266,1758010235409,-168.0,0.00025983,2]
[385752267,1758010235418,-960.16700158,0.00025986,2]
[385752268,1758010235427,-549.0,0.0002602,2]
[385752269,1758010235437,-1000.0,0.00026027,10]
[385752270,1758010235446,-4076.2978,0.00026225,2]
[385752271,1758010235455,-1000.0,0.00026225,2]
[385752272,1758010235464,-2500.0,0.00026225,2]
[385752273,1758010235475,-1000.0,0.00026225,2]
[385752274,1758010235484,-176.2759865,0.00026273,2]
[385752275,1758010235493,-563.49171341,0.00026294,2]
[385752276,1758010235502,-1000.0,0.00026301,10]
[385752277,1758010235511,-13689.0456688,0.00026315,2]
[385752278,1758010235520,-1173.01582233,0.00026325,2]
[385752279,1758010235532,-606.48713533,0.00026325,2]
[385752280,1758010235649,-3655.64913044,0.00026325,2]
[385752281,1758010235658,-5218.01717562,0.00026325,2]
[385752282,1758010235668,-4753.85,0.00026325,2]
[385752283,1758010235679,-748.24533865,0.00026325,2]
[385752284,1758010235690,-861.08144939,0.00026325,2]
[385752285,1758010235701,-3824.88547884,0.00026325,2]
[385752286,1758010235712,-127857.06298955,0.00026325,2]
[385752289,1758010239272,-197.08350881,0.0002328,2]
[385752290,1758010239282,-193.16029261,0.0002328,2]
[385752291,1758010239291,-246.11492926,0.0002328,2]
[385752292,1758010239370,-184.81972682,0.0002328,2]
[385752293,1758010239379,-1160.87162415,0.00026325,2]
[385752294,1758010239389,-170.06440582,0.00026373,2]
[385752295,1758010239398,-500.0,0.00026373,2]
[385752296,1758010239409,-1000.0,0.00026575,10]
[385752297,1758010239418,-161.55679876,0.00026668,2]
[385752298,1758010239428,-500.0,0.00026673,2]
[385752299,1758010239438,-500.0,0.00026673,2]
[385752300,1758010239447,-200.0,0.00026673,2]
[385752301,1758010239456,-5000.0,0.00026678,2]
[385752302,1758010239465,-1167.20586633,0.00026679,2]
[385752303,1758010239475,-13689.0456688,0.00026679,2]
[385752304,1758010239484,-13221.20881765,0.00026689,2]
[385752305,1758010239515,-20883.15498235,0.00026689,2]
[385752306,1758010239524,-183.0,0.00026717,7]
[385752307,1758010239533,-13689.0456688,0.00026768,2]
[385752308,1758010239544,-151.0,0.00026778,7]
[385752309,1758010239554,-30.0314047,0.00026778,7]
[385752316,1758010240346,-146.4188883,0.00026778,7]
[385752317,1758010240356,-200.0,0.00026784,2]
[385752318,1758010240577,-151.0,0.0002679,7]
[385752319,1758010240586,-155.865703,0.0002679,7]
[385752320,1758010240595,-151.0,0.0002679,7]
[385752321,1758010240605,-4964.0,0.000268,2]
[385752322,1758010240614,-1000.0,0.00026849,10]
[385752323,1758010240623,-12144.62143257,0.0002689,2]
[385752324,1758010240650,-1544.42423623,0.0002689,2]
[385752325,1758010240659,-4491.82576377,0.000269,2]
[385752328,1758010240700,-19501.36,0.000269,2]
[385752335,1758010243714,-326.861234,0.000269,2]
[385752336,1758010243734,-2728.10499994,0.000269,2]
[385752338,1758010243899,-765.3301296,0.000269,2]
[385752340,1758010243941,-186.51787269,0.000269,2]
[385752341,1758010243954,-151.0,0.000269,7]
[385752342,1758010243967,-400.0,0.000269,9]
[385752343,1758010243981,-1000.0,0.00026921,2]
[385752344,1758010243995,-7916.96622738,0.0002696,2]
[385752355,1758010246571,-326.38613942,0.00019986,2]
[385752356,1758010246589,-43.79791831,0.00019986,2]
[385752357,1758010246602,-188.6793442,0.00019986,2]
[385752358,1758010246615,-500.0,0.00019986,2]
[385752359,1758010246628,-500.0,0.00019986,2]
[385752360,1758010246640,-500.0,0.00019986,2]
[385752361,1758010246653,-632.25093619,0.00019986,2]
[385752362,1758010246667,-500.0,0.00019986,2]
[385752363,1758010246680,-5772.07944142,0.0002696,2]
[385752364,1758010246693,-13689.0456688,0.0002698,2]
[385752365,1758010246705,-27378.0913376,0.0002699,2]
[385752366,1758010246717,-15018.53584383,0.00027,2]
[385752367,1758010246744,-26112.93219527,0.00027,2]
[385752368,1758010246757,-15009.42314967,0.00027,7]
[385752369,1758010246769,-515.95536276,0.00027,7]
[385752370,1758010246781,-160.0,0.00027,7]
[385752371,1758010246793,-168.0,0.00027033,2]
[385752372,1758010246805,-1000.0,0.00027074,2]
[385752373,1758010246818,-1000.0,0.00027123,10]
[385752374,1758010246836,-545.0,0.00027137,2]
[385752375,1758010246849,-183.0,0.00027137,2]
[385752376,1758010246862,-568.0,0.00027152,2]
[385752377,1758010246874,-611.864,0.00027152,2]
[385752378,1758010246887,-1303.0,0.00027152,2]
[385752379,1758010246900,-813.0,0.00027152,2]
[385752380,1758010246915,-7844.14327432,0.00027182,2]
[385752381,1758010246930,-5844.90239448,0.00027182,2]
[385752382,1758010246941,-173.0,0.00027185,7]
[385752383,1758010246952,-497.70010197,0.00027221,2]
[385752384,1758010246961,-1000.0,0.00027221,2]
[385752385,1758010246972,-211.68154494,0.00027237,2]
[385752386,1758010247086,-1187.97246601,0.00027237,2]
[385752387,1758010247097,-12002.39624415,0.00027237,2]
[385752388,1758010247106,-1567.80375585,0.00027247,2]
[385752389,1758010247117,-11608.0,0.00027247,2]
[385752390,1758010247129,-513.24191295,0.00027247,2]
[385752391,1758010247139,-6285.49687217,0.00027257,2]
[385752392,1758010263497,195.0,0.000297,120]
[385752393,1758010263620,195.0,0.00027074,120]
[385752394,1758010266005,300.0,0.000297,120]
[385752395,1758010266161,300.0,0.00027074,120]
[385752396,1758010266219,300.0,0.00027194,120]
[385752397,1758010266338,300.0,0.00027194,120]
[385752399,1758010322631,300.0,0.00028847,120]
[385752400,1758010323389,150.0,0.00028847,120]
[385752401,1758010324117,300.0,0.00028847,120]
[385752402,1758010324217,300.0,0.00026396,120]
[385752403,1758010324321,300.0,0.00026721,120]
[385752404,1758010324574,300.0,0.00026721,120]
[385752405,1758010324635,300.0,0.00026721,120]
[385752406,1758010325982,195.0,0.00028847,120]
[385752407,1758010326092,195.0,0.00026396,120]
[385752408,1758010326252,195.0,0.00026636,120]
[385752409,1758010326868,520.2417844,0.00028847,120]
[385752410,1758010334325,253.62,0.00026568,120]
[385752411,1758010334653,253.62,0.00029889,120]
[385752412,1758010343286,20.42,0.00027425,30]
[385752413,1758010375467,300.0,0.0003013,120]
[385752416,1758010582862,156.56,0.00013293,2]
[385752417,1758010583075,156.56,0.00017724,2]
[385752418,1758010865772,-156.56,0.00022155,2]
[385752419,1758010866839,-250.0,0.0002437,2]
[385752420,1758010866865,-250.0,0.0002437,2]
[385752421,1758010868433,-213.1401216,0.00024896,2]
[385752423,1758011075198,-151.0,0.00022155,2]
[385752424,1758011075221,-156.587,0.00022703,2]
[385752425,1758011075244,-162.380719,0.00023251,2]
[385752427,1758011181087,13232.96235,0.000209,30]
[385752428,1758011181112,35298.24801903,0.000209,30]
[385752454,1758011409037,-301.65425926,0.00019999,2]
[385752455,1758011409062,-292.47232624,0.00019999,2]
[385752456,1758011409086,-26405.8734145,0.0002,2]
[385752465,1758011431594,-19982.66141241,0.0002,2]
[385752466,1758011431605,-1097.25115179,0.0002,2]
[385752467,1758011431756,-904.33283625,0.0002,2]
[385752468,1758011431819,-2685.8281,0.0002,2]
[385752469,1758011431939,-11601.0,0.0002,2]
[385752470,1758011431951,-372.77289877,0.0002,2]
[385752495,1758011437917,-10304.0130891,0.0002,2]
[385752646,1758011439555,-28317.29385148,0.0002,2]
[385752648,1758011439566,-48261.59879935,0.0002,2]
[385752675,1758011439971,-400.0,0.0002,2]
[385752677,1758011439982,-857.16113656,0.0002,2]
[385752891,1758011442911,-15253.66160463,0.0002,2]
[385752926,1758011445579,-346.491099,0.0002,2]
[385752927,1758011445635,-11084.47892478,0.0002,2]
[385752928,1758011445645,-1463.1094608,0.00020555,2]
[385752929,1758011445655,-1956.91090096,0.0002085,2]
[385752930,1758011445665,-3788.98,0.00024,5]
[385752931,1758011445674,-629.18368372,0.00024047,2]
[385752932,1758011445683,-150.0,0.00024658,2]
[385752933,1758011445693,-152.94,0.000249,2]
[385752934,1758011445702,-977.18767358,0.000249,2]
[385753550,1758012191753,11762.87785492,0.00029,120]
[385753552,1758012373784,384.75,0.00025867,120]
[385753553,1758012373938,384.75,0.00028741,120]
[385753555,1758012452150,161.11,0.00011527,2]
[385753556,1758012452357,161.11,0.00015369,2]
[385753559,1758012499702,-153.67427574,0.00019211,2]
[385753564,1758012631776,-7.43572426,0.00019211,2]
[385753565,1758012631785,-300.0,0.00021132,2]
[385753566,1758012631794,-291.88919535,0.00021132,2]
[385753567,1758012631804,-151.0,0.000214,2]
[385753568,1758012631812,-151.0,0.00021417,2]
[385753569,1758012631821,-151.0,0.00021426,2]
[385753570,1758012631830,-151.0,0.00021436,2]
[385753571,1758012631839,-152.5150161,0.00021615,2]
[385753572,1758012631848,-152.51501609,0.00021628,2]
[385753573,1758012631858,-343.56519593,0.000217,2]
[385753574,1758012631867,-151.0,0.000217,2]
[385753575,1758012631876,-36.25670016,0.00021714,2]
[385753576,1758012631902,-1163.74329984,0.00021714,2]
[385753577,1758012631911,-200.0,0.00021715,2]
[385753578,1758012631919,-167.79669956,0.00021715,2]
[385753579,1758012631986,-332.20330044,0.00021715,2]
[385753580,1758012631996,-180.06018685,0.00021715,2]
[385753581,1758012632005,-500.0,0.00021715,2]
[385753582,1758012632014,-495.78490962,0.00021715,2]
[385753583,1758012632043,-4.21509038,0.00021715,2]
[385753584,1758012632052,-500.0,0.00021715,2]
[385753585,1758012632061,-500.0,0.00021715,2]
[385753586,1758012632070,-500.0,0.00021715,2]
[385753587,1758012632079,-500.0,0.00021715,2]
[385753588,1758012632088,-500.0,0.00021715,2]
[385753589,1758012632097,-500.0,0.00021715,2]
[385753590,1758012632106,-500.0,0.00021715,2]
[385753591,1758012632115,-200.0,0.00021715,2]
[385753592,1758012632124,-500.0,0.00021715,2]
[385753593,1758012632134,-500.0,0.00021715,2]
[385753594,1758012632143,-200.0,0.00021715,2]
[385753595,1758012632152,-157.82135318,0.00021715,2]
[385753596,1758012632161,-151.0,0.00021715,2]
[385753597,1758012632169,-151.0,0.00021715,2]
[385753598,1758012632178,-151.0,0.00021715,2]
[385753599,1758012632188,-151.0,0.00021715,2]
[385753600,1758012632202,-151.0,0.00021715,2]
[385753601,1758012632210,-151.0,0.00021715,2]
[385753602,1758012632219,-151.0,0.00021715,2]
[385753603,1758012632227,-151.0,0.00021715,2]
[385753604,1758012632236,-151.0,0.00021715,2]
[385753605,1758012632244,-500.0,0.00021715,2]
[385753606,1758012632252,-500.0,0.00021715,2]
[385753608,1758012632263,-500.0,0.00021715,2]
[385753610,1758012632272,-500.0,0.00021715,2]
[385753612,1758012632280,-159.10247165,0.00021715,2]
[385753613,1758012632291,-471.89704871,0.00021715,2]
[385753614,1758012632299,-208.78783415,0.00021727,2]
[385753616,1758012632308,-244.35614891,0.00021727,2]
[385753618,1758012632317,-187.77356091,0.00021728,2]
[385753635,1758012639993,-12430.02491176,0.00021728,2]
[385753652,1758012643079,-9926.30079983,0.00021728,2]
[385753653,1758012643089,-467.3312093,0.00021728,2]
[385753654,1758012643099,-370.8366611,0.00021728,2]
[385753655,1758012643108,-43806.133096,0.00021728,2]
[385753656,1758012643117,-268.4087334,0.00021728,2]
[385753657,1758012643126,-500.0,0.00021773,2]
[385753658,1758012643135,-500.0,0.00021773,2]
[385753659,1758012643145,-500.0,0.00021773,2]
[385753660,1758012643154,-156.587,0.00022248,2]
[385753661,1758012643164,-200.0,0.00022263,2]
[385753662,1758012643174,-200.0,0.00022263,2]
[385753663,1758012643184,-1268.11,0.00022655,2]
[385753664,1758012643196,-423.66,0.00022718,2]
[385753665,1758012643214,-162.380719,0.00022796,2]
[385753666,1758012643223,-200.0,0.00022811,2]
[385753667,1758012643233,-200.0,0.00022811,2]
[385753668,1758012643243,-150.0,0.00022991,7]
[385753669,1758012643253,-384.75,0.00022993,2]
[385753670,1758012643262,-161.11,0.00023053,2]
[385753671,1758012643271,-150.0,0.00023085,2]
[385753672,1758012643280,-200.0,0.00023218,2]
[385753673,1758012643289,-168.3888056,0.00023344,2]
[385753674,1758012643298,-1000.0,0.0002337,2]
[385753675,1758012643308,-166.69,0.00023399,2]
[385753676,1758012643317,-895.0,0.00023714,2]
[385753677,1758012643326,-300.0,0.00023777,2]
[385753678,1758012643336,-195.0,0.00023777,2]
[385753679,1758012643346,-250.0,0.00023777,2]
[385753680,1758012643355,-1000.0,0.000238,2]
[385753681,1758012643363,-250.22846056,0.00023892,2]
[385753682,1758012643372,-167.88,0.0002391,2]
[385753683,1758012643380,-677.19,0.00023935,2]
[385753684,1758012643388,-268.4087334,0.0002397,2]
[385753685,1758012643396,-467.3312093,0.00024082,2]
[385753687,1758012643404,-180.93048416,0.00024117,2]
[385753688,1758012643412,-449.63442375,0.00024117,2]
[385753689,1758012643420,-43806.133096,0.00024118,2]
[385753690,1758012643429,-158.36,0.00024272,2]
[385753691,1758012643438,-500.0,0.0002428,2]
[385753692,1758012643447,-500.0,0.0002428,2]
[385753694,1758012643456,-500.0,0.0002428,2]
[385753696,1758012643465,-500.99756404,0.0002428,2]
[385753698,1758012643475,-168.48925583,0.0002428,2]
[385753700,1758012643484,-1370.12,0.00024301,2]
[385753702,1758012643492,-268.72,0.00024357,2]
[385753704,1758012643502,-200.0,0.00024454,2]
[385753706,1758012643511,-370.8366611,0.00024501,2]
[385753708,1758012643520,-233.76880402,0.00024579,2]
[385753710,1758012643529,-506.80139187,0.00024585,2]
[385753712,1758012643538,-22544.0992725,0.00024598,2]
[385753714,1758012643548,-150.0,0.00024624,2]
[385753716,1758012643557,-167.75852,0.0002465,2]
[385753718,1758012643566,-1000.0,0.00024828,2]
[385753720,1758012643576,-642.27123774,0.00024869,5]
[385753722,1758012643585,-176.2759865,0.00024869,2]
[385753724,1758012643594,-8974.62497098,0.00024869,2]
[385753725,1758012643603,-232.9459475,0.00024869,2]
[385753726,1758012643612,-400.0,0.000249,9]
[385753727,1758012643622,-15165.23229085,0.000249,2]
[385753728,1758012643635,-298.01050718,0.0002496,2]
[385753729,1758012643647,-152.15,0.0002496,2]
[385753730,1758012643656,-151.0,0.00024967,7]
[385753731,1758012643665,-36049.44160001,0.00024969,2]
[385753732,1758012643674,-691981.02440836,0.00024969,3]
[385753733,1758012643683,-17263.52063275,0.00024969,2]
[385753734,1758012643707,-252646.99003525,0.00024969,2]
[385753735,1758012643716,-19566.10740325,0.00024969,2]
[385753736,1758012645951,-151.0,0.00021422,2]
[385753737,1758012645961,-6982.64755197,0.00024969,2]
[385753738,1758012646106,-24137.18867355,0.00024969,2]
[385753739,1758012646117,-757.97739698,0.00024969,2]
[385753763,1758012665183,343.68852022,0.00027466,120]
[385753812,1758013436780,159.55,0.0001204,2]
[385753819,1758013832067,-151.0,0.00021674,2]
[385753820,1758013832076,-151.0,0.00021682,2]
[385753821,1758013832085,-32.78694722,0.00021683,2]
[385753822,1758013832096,-118.21305278,0.00021683,2]
[385753823,1758013832105,-151.0,0.00021695,2]
[385753824,1758013832114,-166.59,0.00022,2]
[385753825,1758013832123,-640.88976978,0.00022,2]
[385753826,1758013832132,-383.20019046,0.00022,2]
[385753827,1758013832140,-500.0,0.00022001,2]
[385753828,1758013832149,-637.0,0.00022007,2]
[385753829,1758013832159,-250.0,0.00022008,2]
[385753830,1758013832168,-199.97345356,0.00022038,2]
[385753831,1758013832187,-114.77064307,0.00022038,2]
[385753832,1758013832196,-250.0,0.00022039,2]
[385753833,1758013832205,-179.03403863,0.000221,2]
[385753834,1758013832215,-1000.0,0.000225,2]
[385753835,1758013832224,-1001.0,0.000225,2]
[385753836,1758013832233,-485.0,0.000236,2]
[385753837,1758013832243,-404.11,0.00023817,2]
[385753838,1758013832252,-195.0,0.0002385,2]
[385753839,1758013832260,-166.59,0.00023862,2]
[385753840,1758013832270,-299.50031707,0.00023887,2]
[385753841,1758013832281,-169.73968293,0.00023887,2]
[385753842,1758013832290,-477.27105138,0.0002407,2]
[385753843,1758013832305,-522.72894862,0.0002407,2]
[385753844,1758013832315,-159.55,0.00024079,2]
[385753845,1758013832324,-166.22,0.00024198,2]
[385753846,1758013832333,-250.0,0.00024202,2]
[385753847,1758013832342,-914.52,0.00024287,2]
[385753848,1758013832351,-150.0,0.00024321,7]
[385753849,1758013832361,-475.0,0.0002478,2]
[385753850,1758013832370,-183.0,0.00024794,2]
[385753851,1758013832378,-183.0,0.00024803,7]
[385753852,1758013832388,-15231.00325541,0.000249,2]
[385753853,1758013832397,-500.0,0.00024903,2]
[385753854,1758013832406,-500.0,0.00024903,2]
[385753855,1758013832415,-154.95558336,0.00024903,2]
[385753856,1758013832423,-9464.52251039,0.00024918,2]
[385753857,1758013832434,-2228.98873897,0.00024918,2]
[385753858,1758013832456,-335.26580545,0.00024918,2]
[385753859,1758013832467,-9589.39643398,0.00024918,2]
[385753860,1758013832551,-757.41047279,0.00024918,2]
[385753861,1758013832573,-689.62193053,0.00024918,2]
[385753873,1758013838148,-220.32086764,0.00024779,2]
[385753874,1758013838157,-242.53913236,0.00024918,2]
[385753875,1758013838219,-695.2374862,0.00024918,2]
[385753885,1758013840140,-623.4641763,0.00024918,2]
[385753886,1758013840152,-7106.84791287,0.00024918,2]
[385754028,1758013843074,-302.16302447,0.00024918,2]
[385754030,1758013843660,-79.65045678,0.00024918,2]
[385754036,1758014227517,153.9,0.00027439,120]
[385754037,1758014404802,-207.0373681,0.00021863,2]
[385754038,1758014405288,-532.99224983,0.00021863,2]
[385754042,1758014595879,1663.650373,0.0003,120]
[385754044,1758014709090,14840.45,0.0002,2]
[385754064,1758015006470,-300.0,0.00019997,2]
[385754065,1758015006493,-172.63496537,0.00019997,2]
[385754066,1758015007956,-127.36503463,0.00019997,2]
[385754067,1758015007978,-68.12389798,0.00019998,2]
[385754068,1758015009480,-172.07220493,0.00019998,2]
[385754073,1758015032447,-259.80389709,0.00019998,2]
[385754074,1758015032457,-512.68980954,0.00019998,2]
[385754075,1758015032467,-500.0,0.00019998,2]
[385754076,1758015032477,-258.45989708,0.00019998,2]
[385754077,1758015032486,-500.0,0.00019998,2]
[385754078,1758015032496,-500.0,0.00019998,2]
[385754079,1758015032504,-500.0,0.00019998,2]
[385754080,1758015032514,-350.18766789,0.00019998,2]
[385754081,1758015032523,-2010.74220556,0.00019999,2]
[385754082,1758015032532,-175.48831626,0.00019999,2]
[385754083,1758015032542,-184.55798795,0.00019999,2]
[385754084,1758015032551,-470.55744513,0.00019999,2]
[385754085,1758015032561,-212.61784609,0.00019999,2]
[385754086,1758015032570,-21164.75082868,0.0002,2]
[385754087,1758015032579,-63177.37231713,0.0002,2]
[385754088,1758015032633,-3634.28350967,0.0002,2]
[385754089,1758015032644,-7269.04986994,0.0002001,2]
[385754090,1758015032653,-712.84072185,0.00020202,2]
[385754091,1758015032668,-1150.58488731,0.00020202,2]
[385754092,1758015032715,-709.19690001,0.00020202,2]
[385754121,1758015038471,-261.1319631,0.00019997,2]
[385754122,1758015038481,-104.01789504,0.00020202,2]
[385754134,1758015046261,-326.31705539,0.00020202,2]
[385754135,1758015046271,-8409.54457955,0.00020555,2]
[385754136,1758015046281,-1625.50192115,0.00021,2]
[385754137,1758015046290,-151.0,0.00021138,2]
[385754138,1758015046300,-151.0,0.00021182,2]
[385754139,1758015046309,-151.0,0.00021214,2]
[385754140,1758015046319,-151.0,0.00021221,2]
[385754141,1758015046329,-420.0,0.00021775,2]
[385754142,1758015046339,-176.87019707,0.00022,2]
[385754143,1758015046348,-2630.11,0.00023636,2]
[385754144,1758015046358,-1000.0,0.00023666,2]
[385754145,1758015046368,-171.14,0.00023865,2]
[385754146,1758015046378,-166.85,0.00023881,2]
[385754147,1758015046388,-150.0,0.00023885,7]
[385754148,1758015046397,-5000.00228565,0.00024,5]
[385754149,1758015046407,-396.0,0.00024067,2]
[385754150,1758015046417,-395.0,0.00024138,2]
[385754151,1758015046426,-395.0,0.00024179,2]
[385754152,1758015046437,-164.62,0.00024323,2]
[385754153,1758015046447,-250.0,0.00024369,2]
[385754154,1758015046456,-333.0,0.00024374,2]
[385754155,1758015046467,-333.0,0.00024378,2]
[385754156,1758015046478,-27.30866504,0.0002439,2]
[385754157,1758015046541,-126.59133496,0.0002439,2]
[385754158,1758015046551,-447.0,0.000244,2]
[385754159,1758015046561,-333.0,0.00024416,2]
[385754160,1758015046572,-333.0,0.00024432,2]
[385754161,1758015046582,-4283.8220215,0.00024571,2]
[385754162,1758015046591,-1278.490789,0.00024571,2]
[385754163,1758015046601,-17102.28676549,0.00024571,2]
[385754167,1758015046620,-1953.30925872,0.00024571,2]
[385754169,1758015144094,320.0,0.00026702,120]
[385754170,1758015144412,320.0,0.00029668,120]
[385754171,1758015216914,333.0,0.00030136,120]
[385754172,1758015242641,255.0,0.00025,14]
[385754173,1758015254120,155.0,0.00022,30]
[385754175,1758015329622,155.08,0.00011518,2]
[385754189,1758015966663,160.0,0.00024609,14]
[385754190,1758015967028,160.0,0.00024609,14]
[385754191,1758015967297,160.0,0.00024609,14]
[385754192,1758015967625,289.177463,0.00024609,14]
[385754193,1758015972273,-200.93936177,0.00021022,2]
[385754194,1758015972296,-250.0,0.00021042,2]
[385754195,1758015972320,-446.90326196,0.00021061,2]
[385754196,1758015972343,-1056.61967392,0.00021061,3]
[385754197,1758015972367,-169.4766508,0.000211,2]
[385754198,1758015972390,-189.90196567,0.00021122,2]
[385754199,1758015972415,-500.0,0.00021122,2]
[385754200,1758015972440,-500.0,0.00021122,2]
[385754201,1758015972465,-500.0,0.00021122,2]
[385754202,1758015972488,-618.00436671,0.00021122,2]
[385754203,1758015972510,-173.81068767,0.00021127,2]
[385754204,1758015972531,-590.01414851,0.00021127,2]
[385754205,1758015972551,-220.1424426,0.00021127,2]
[385754206,1758015972580,-368.0,0.00021127,2]
[385754207,1758015972604,-966.18744039,0.00021128,2]
[385754212,1758016140059,153.9,0.00027954,120]
[385754238,1758016231584,-200.93936176,0.00021015,2]
[385754241,1758016231595,-300.0,0.00021114,2]
[385754244,1758016231605,-235.33381852,0.00021114,2]
[385754246,1758016231614,-200.0,0.00021115,2]
[385754247,1758016231626,-200.0,0.00021115,2]
[385754248,1758016231640,-151.0,0.00021115,2]
[385754249,1758016231650,-151.0,0.00021115,2]
[385754250,1758016231659,-500.0,0.00021115,2]
[385754251,1758016231668,-151.0,0.00021115,2]
[385754252,1758016231678,-151.0,0.00021115,2]
[385754253,1758016231687,-500.0,0.00021115,2]
[385754254,1758016231696,-151.0,0.00021115,2]
[385754255,1758016231708,-151.0,0.00021115,2]
[385754256,1758016231718,-271.4784517,0.00021115,2]
[385754257,1758016231728,-500.0,0.00021115,2]
[385754258,1758016231738,-151.0,0.00021115,2]
[385754259,1758016231747,-151.0,0.00021115,2]
[385754260,1758016231756,-151.0,0.00021115,2]
[385754261,1758016231765,-151.0,0.00021115,2]
[385754262,1758016231774,-151.0,0.00021115,2]
[385754263,1758016231783,-500.0,0.00021115,2]
[385754264,1758016231792,-151.0,0.00021115,2]
[385754265,1758016231802,-151.0,0.00021115,2]
[385754266,1758016231811,-151.0,0.00021115,2]
[385754267,1758016231821,-151.0,0.00021115,2]
[385754268,1758016231830,-151.0,0.00021115,2]
[385754269,1758016231839,-201.93406588,0.00021115,2]
[385754270,1758016231848,-151.0,0.00021115,2]
[385754271,1758016231857,-151.0,0.00021115,2]
[385754272,1758016231866,-151.0,0.00021115,2]
[385754273,1758016231875,-151.0,0.00021115,2]
[385754274,1758016231884,-151.0,0.00021115,2]
[385754275,1758016231894,-151.0,0.00021115,2]